[Event "Wuerttemberg Rapid Teams 2024"]
[Site "B?blingen, Germany"]
[Date "2024.04.13"]
[Round "6.16"]
[White "Eisele, Steffen"]
[Black "Tschlatscher, Thomas"]
[Result "0-1"]
[ECO "C61"]
[WhiteElo "2230"]
[BlackElo "2217"]
[Annotator "RC"]
[PlyCount "64"]
[EventDate "2024.04.13"]
[EventType "team-tourn"]
[SourceTitle "playchess.com"]
[Source "ChessBase"]
[SourceQuality "1"]
[TimeControl "900+5"]

1. e4 {[%emt 0:01:22]} e5 {[%emt 0:00:02]} 2. Nf3 {[%emt 0:00:01]} Nc6 {[%emt 0:00:02]} 3. Bb5 {[%emt 0:00:01]} Nd4 {[%emt 0:00:02]} 4. Nxd4 {[%emt 0:00:07]} exd4 {[%emt 0:00:02]} 5. O-O {[%emt 0:01:07]} c6 {[%emt 0:00:02]} 6. Ba4 {[%emt 0:00:23]} Nf6 {[%emt 0:00:03]} 7. d3 {[%emt 0:00:04]} Be7 {[%emt 0:00:42]} 8. Nd2 {[%emt 0:00:12]} O-O {[%emt 0:00:08]} 9. Nf3 {[%emt 0:00:14]} c5 {[%emt 0:00:10]} 10. c3 {[%emt 0:00:18]} dxc3 {[%emt 0:00:37]} 11. bxc3 {[%emt 0:00:01]} d5 {[%emt 0:00:04]} 12. e5 {[%emt 0:01:09]} Ne8 {[%emt 0:00:09]} 13. d4 {[%emt 0:00:14]} Bg4 {[%emt 0:00:44]} 14. h3 {[%emt 0:00:22]} Bh5 {[%emt 0:00:04]} 15. Re1 {[%emt 0:00:34]} Nc7 {[%emt 0:01:22]} 16. Rb1 {[%emt 0:00:28]} Rb8 {[%emt 0:00:41]} 17. Be3 {[%emt 0:00:20]} b5 {[%emt 0:01:01]} 18. Bc2 {[%emt 0:00:03]} c4 {[%emt 0:00:39]} 19. g4 {[%emt 0:01:34]} Bg6 {[%emt 0:00:03]} 20. Bxg6 {[%emt 0:00:07]} fxg6 {[%emt 0:00:22]} 21. Kg2 {[%emt 0:00:15]} Ne6 {[%emt 0:00:03]} 22. Qd2 {[%emt 0:00:08]} a5 {[%emt 0:00:22]} 23. Ng1 {[%emt 0:01:55]} b4 {[%emt 0:00:28]} 24. Ne2 {[%emt 0:00:08]} g5 {[%emt 0:01:15]} 25. Rf1 {[%emt 0:01:00]} bxc3 {[%emt 0:00:41]} 26. Nxc3 {[%emt 0:00:38]} Bb4 {[%emt 0:00:09]} 27. Rbc1 {[%emt 0:00:19]} Rb7 {[%emt 0:02:10]} 28. f4 {[%emt 0:00:46]} gxf4 {[%emt 0:00:09]} 29. Bxf4 {[%emt 0:00:01]} Rxf4 {[%emt 0:00:02]} 30. Rxf4 {[%emt 0:00:06]} Qg5 {[%emt 0:00:02]} 31. Rcf1 {[%emt 0:00:27]} Rf7 {[%emt 0:00:21]} 32. h4 {[%emt 0:02:22]} Nxf4+ {[%emt 0:00:07]} 0-1

[Event "Wuerttemberg Rapid Teams 2024"]
[Site "B?blingen, Germany"]
[Date "2024.04.13"]
[Round "6.17"]
[White "Braeuning, Rudolf Wilhelm"]
[Black "Kulm, Justin"]
[Result "0-1"]
[ECO "D11"]
[WhiteElo "2194"]
[BlackElo "1963"]
[Annotator "RC"]
[PlyCount "76"]
[EventDate "2024.04.13"]
[EventType "team-tourn"]
[SourceTitle "playchess.com"]
[Source "ChessBase"]
[SourceQuality "1"]
[TimeControl "900+5"]

1. d4 {[%emt 0:00:05]} Nf6 {[%emt 0:00:04]} 2. Nf3 {[%emt 0:00:02]} d5 {[%emt 0:00:12]} 3. g3 {[%emt 0:00:04]} c6 {[%emt 0:00:23]} 4. Bg2 {[%emt 0:00:01]} Bf5 {[%emt 0:00:09]} 5. O-O {[%emt 0:00:11]} e6 {[%emt 0:00:05]} 6. c4 {[%emt 0:00:38]} Nbd7 {[%emt 0:00:45]} 7. Qb3 {[%emt 0:01:24]} Qb6 {[%emt 0:00:09]} 8. c5 {[%emt 0:00:47]} Qxb3 {[%emt 0:01:02]} 9. axb3 {[%emt 0:00:02]} e5 {[%emt 0:01:25]} 10. e3 {[%emt 0:02:00]} Bd3 {[%emt 0:01:14]} 11. Re1 {[%emt 0:00:37]} e4 {[%emt 0:00:05]} 12. Nfd2 {[%emt 0:00:20]} h5 {[%emt 0:00:37]} 13. h3 {[%emt 0:02:09]} a6 {[%emt 0:05:11]} 14. Nc3 {[%emt 0:00:26]} g5 {[%emt 0:00:47]} 15. b4 {[%emt 0:00:38]} Bh6 {[%emt 0:01:07]} 16. Bf1 {[%emt 0:00:39]} Bxf1 {[%emt 0:00:09]} 17. Kxf1 {[%emt 0:00:23]} O-O {[%emt 0:00:09]} 18. Nb3 {[%emt 0:00:22]} Ne8 {[%emt 0:00:51]} 19. b5 {[%emt 0:01:03]} f5 {[%emt 0:00:09]} 20. bxc6 {[%emt 0:01:31]} bxc6 {[%emt 0:00:03]} 21. Ne2 {[%emt 0:00:34]} Nc7 {[%emt 0:00:10]} 22. Na5 {[%emt 0:00:22]} Rf6 {[%emt 0:00:20]} 23. Bd2 {[%emt 0:00:25]} Rb8 {[%emt 0:00:07]} 24. Ra2 {[%emt 0:00:11]} h4 {[%emt 0:00:24]} 25. Kg2 {[%emt 0:00:15]} Rb5 {[%emt 0:00:16]} 26. Nc3 {[%emt 0:00:11]} Rb8 {[%emt 0:00:03]} 27. Ne2 {[%emt 0:00:01]} Nf8 {[%emt 0:00:11]} 28. Kh2 {[%emt 0:00:22]} Ng6 {[%emt 0:00:04]} 29. Rg1 {[%emt 0:00:12]} Kf7 {[%emt 0:00:13]} 30. Rg2 {[%emt 0:00:24]} Ke7 {[%emt 0:00:07]} 31. Rg1 {[%emt 0:00:41]} Kd7 {[%emt 0:00:03]} 32. Rg2 {[%emt 0:00:08]} hxg3+ {[%emt 0:00:11]} 33. fxg3 {[%emt 0:00:18]} f4 {[%emt 0:00:17]} 34. gxf4 {[%emt 0:00:04]} gxf4 {[%emt 0:00:01]} 35. exf4 {[%emt 0:00:10]} Nh4 {[%emt 0:00:15]} 36. Ng3 {[%emt 0:00:19]} Nxg2 {[%emt 0:00:09]} 37. Kxg2 {[%emt 0:00:01]} Rg8 {[%emt 0:00:03]} 38. Kh2 {[%emt 0:00:04]} Rfg6 {[%emt 0:00:15]} 0-1

[Event "Wuerttemberg Rapid Teams 2024"]
[Site "B?blingen, Germany"]
[Date "2024.04.13"]
[Round "6.18"]
[White "Hartmann, Martin"]
[Black "Bueble, Joschua"]
[Result "1-0"]
[ECO "C56"]
[WhiteElo "2158"]
[BlackElo "1972"]
[Annotator "RC"]
[PlyCount "39"]
[EventDate "2024.04.13"]
[EventType "team-tourn"]
[SourceTitle "playchess.com"]
[Source "ChessBase"]
[SourceQuality "1"]
[TimeControl "900+5"]

1. e4 {[%emt 0:00:01]} e5 {[%emt 0:00:01]} 2. Nf3 {[%emt 0:00:02]} Nc6 {[%emt 0:00:00]} 3. d4 {[%emt 0:00:01]} exd4 {[%emt 0:00:01]} 4. Bc4 {[%emt 0:00:01]} Nf6 {[%emt 0:00:02]} 5. e5 {[%emt 0:00:02]} d5 {[%emt 0:00:00]} 6. Bb5 {[%emt 0:00:01]} Nd7 {[%emt 0:00:05]} 7. Bxc6 {[%emt 0:00:04]} bxc6 {[%emt 0:00:02]} 8. O-O {[%emt 0:00:03]} Be7 {[%emt 0:00:26]} 9. e6 {[%emt 0:00:34]} fxe6 {[%emt 0:00:02]} 10. Nxd4 {[%emt 0:00:01]} Nb8 {[%emt 0:00:17]} 11. Qh5+ {[%emt 0:00:03]} g6 {[%emt 0:00:06]} 12. Qe2 {[%emt 0:00:03]} Ba6 {[%emt 0:00:28]} 13. Qxe6 {[%emt 0:00:27]} Bxf1 {[%emt 0:00:05]} 14. Kxf1 {[%emt 0:01:33]} c5 {[%emt 0:01:57]} 15. Qe5 {[%emt 0:00:12]} Kf7 {[%emt 0:03:06]} 16. Ne6 {[%emt 0:01:57]} Qd6 {[%emt 0:03:21]} 17. Qxh8 {[%emt 0:00:07]} Kxe6 {[%emt 0:01:13]} 18. Nc3 {[%emt 0:00:27]} Qxh2 {[%emt 0:00:22]} 19. Qg8+ {[%emt 0:00:02]} Kd6 {[%emt 0:00:17]} 20. Qxd5# {[%emt 0:00:53]} 1-0

[Event "Wuerttemberg Rapid Teams 2024"]
[Site "B?blingen, Germany"]
[Date "2024.04.13"]
[Round "6.19"]
[White "Freiherr von Hauff, Christopher"]
[Black "Schraegle, Thorsten"]
[Result "1/2-1/2"]
[ECO "D02"]
[WhiteElo "1960"]
[BlackElo "1918"]
[Annotator "TA"]
[PlyCount "45"]
[EventDate "2024.04.13"]
[EventType "team-tourn"]
[SourceTitle "playchess.com"]
[Source "ChessBase"]
[SourceQuality "1"]
[TimeControl "900+5"]

{[%evp 9,45,5,20,14,72,30,117,135,145,148,145,139,252,253,261,150,172,120,122,0,0,0,0,0,0,0,0,-290,0,0,289,282,281,287,276,0,161,-362]} 1. d4 {[%emt 0:00:02]} Nf6 {[%emt 0:00:03]} 2. Nc3 {[%emt 0:00:02]} d5 {[%emt 0:00:33]} 3. Bf4 {[%emt 0:00:03]} Bf5 {[%emt 0:00:11]} 4. e3 {[%emt 0:01:11]} e6 {[%emt 0:00:07]} 5. Nf3 {[%emt 0:00:03]} h6 {[%emt 0:00:23]} 6. Bd3 {[%emt 0:00:11]} Ne4 {[%emt 0:01:24]} (6... Bxd3 $11 {keeps the balance.} 7. cxd3 c6) 7. O-O {[%emt 0:00:15]} c6 {[%emt 0:01:32]} (7... Bb4 $11) 8. Bxe4 $16 {[%emt 0:00:30] White is better.} Bxe4 {[%emt 0:01:26]} 9. Nxe4 {[%emt 0:00:03]} dxe4 {[%emt 0:00:01]} 10. Nd2 {[%emt 0:00:02]} f5 {[%emt 0:02:19]} (10... Nd7 $16 {was called for.} 11. Nxe4 Be7 12. Nd6+ Bxd6) 11. Qh5+ $18 {[%emt 0:00:04]} Kd7 {[%emt 0:00:01]} 12. Nc4 {[%emt 0:00:22]} (12. f3 $18) 12... Qe8 $16 {[%emt 0:01:27]} 13. Ne5+ {[%emt 0:01:53]} (13. Qe2 $18) 13... Kd8 {[%emt 0:00:01]} 14. Nf7+ {[%emt 0:02:07]} ({Better is} 14. Ng6 $1 $16) 14... Ke7 $11 {[%emt 0:00:03]} 15. Bd6+ {[%emt 0:00:11]} Kf6 {[%emt 0:00:35] Threatens to win with ...Bxd6.} 16. Be5+ {[%emt 0:00:15]} Ke7 {[%emt 0:00:01]} 17. Bd6+ $1 {[%emt 0:00:00]} Kf6 {[%emt 0:00:02] White must now prevent ...Bxd6.} 18. Bf4 {[%emt 0:04:54][%mdl 8192]} (18. Be5+ $1 $11 {and White has nothing to worry.} Ke7 19. Bd6+) 18... Ke7 $2 {[%emt 0:00:32]} (18... g6 $19 19. Qh3 Kxf7) 19. Bd6+ Kd7 $2 {[%emt 0:00:01][%mdl 8192] [#] Black is weak on the dark squares} (19... Kf6 $11 20. Be5+ Ke7 21. Bd6+) 20. Ne5+ $1 $18 Kd8 {[%emt 0:00:01] [#]} 21. Bc7+ $1 {[%mdl 512]} Ke7 {[%emt 0:00:03] [#]} 22. Bd6+ Kd8 $1 23. Qe2 $4 {[%emt 0:02:30][%mdl 40960] Weighted Error Value: White=0.69/Black=0.66.  Loses game:     	White=1     	Black=1      Missed win:     	White=1     	Black=1      Mistake:       	White=4     	Black=3      Inaccurate:     	White=1     	---        OK:         	White=4     	Black=1      Best:        	White=3     	Black=7      Strong:       	White=2     	Black=1     . An unexpected result.} (23. Qf7 $18 {[%csl Gd6][%cal Rf7c7] and life is good for White.} Nd7 (23... Bxd6 $2 {loses.} 24. Qxb7 Rf8 25. Qxa8 $18) 24. Bxf8 Rxf8 25. Qxg7) 1/2-1/2

[Event "Wuerttemberg Rapid Teams 2024"]
[Site "B?blingen, Germany"]
[Date "2024.04.13"]
[Round "6.20"]
[White "Deubel, Silas"]
[Black "Guenter, Alexander"]
[Result "1/2-1/2"]
[ECO "D94"]
[WhiteElo "1851"]
[BlackElo "1997"]
[Annotator "TA"]
[PlyCount "148"]
[EventDate "2024.04.13"]
[EventType "team-tourn"]
[SourceTitle "playchess.com"]
[Source "ChessBase"]
[SourceQuality "1"]
[TimeControl "900+5"]

{[%evp 20,148,36,35,34,15,15,4,32,31,43,0,0,0,0,-97,-86,-280,-280,-277,-279,-264,-187,-187,-192,-176,-118,-114,-75,-79,-75,-60,-59,-70,-64,-66,-56,-75,-70,-54,-16,-27,-2,-13,0,-29,-9,-25,-25,-114,-114,-136,-139,-140,-139,-212,-195,-537,-523,-547,-374,-360,-41,-40,-44,-68,5135,4739,6591,6100,7010,4878,2291,2786,11173,9584,29988,29989,29988,1763,1528,1205,1131,737,1388,654,636,620,611,521,1013,135,135,8,8,8,8,8,8,8,8,8,8,8,8,8,8,8,52,8,8,8,8324,8,8,0,0,0,0,0,0,0,0,0,0,0,0,0,0,-8,-8]} 1. Nf3 {[%emt 0:00:05]} Nf6 {[%emt 0:00:05]} 2. e3 {[%emt 0:00:05]} g6 {[%emt 0:00:05]} 3. d4 {[%emt 0:00:05]} d5 {[%emt 0:00:05]} 4. c4 {[%emt 0:00:05]} c6 {[%emt 0:00:05]} 5. Nc3 {[%emt 0:00:05]} Bg7 {[%emt 0:00:05]} 6. b3 {[%emt 0:00:05]} O-O {[%emt 0:00:05]} 7. Bb2 {[%emt 0:00:05]} Bg4 {[%emt 0:00:05]} 8. Be2 {[%emt 0:00:05]} e6 {[%emt 0:00:05]} 9. h3 {[%emt 0:00:05]} Bxf3 {[%emt 0:00:05]} 10. Bxf3 {[%emt 0:00:05]} Nbd7 {[%emt 0:00:00]} 11. O-O {[%emt 0:00:33]} Rc8 {[%emt 0:00:00]} 12. h4 {[%emt 0:00:21]} h5 {[%emt 0:00:00]} 13. g3 {[%emt 0:00:42]} dxc4 {[%emt 0:00:00]} 14. bxc4 {[%emt 0:00:05]} e5 {[%emt 0:00:12][%cal Be6e5,Be5e4][%mdl 32]} 15. d5 {[%emt 0:00:38]} cxd5 {[%emt 0:00:19]} 16. cxd5 {[%emt 0:00:03]} Nb6 {[%emt 0:00:13]} 17. Qb3 {[%emt 0:00:35]} (17. Rb1 $11) 17... Nc4 $17 {[%emt 0:00:24] Strongly threatening ...Nxb2.} 18. Rfd1 $2 {[%emt 0:00:18]} (18. Bc1 $17) 18... Nxb2 {[%emt 0:00:04]} 19. Qxb2 {[%emt 0:00:05][%cal Oe3e4] [#]} e4 $1 {[%emt 0:00:08][%mdl 512]} 20. Bg2 {[%emt 0:00:21]} Qa5 {[%emt 0:00:13] Prevents Qa3} 21. Ne2 {[%emt 0:01:22]} Nxd5 {[%emt 0:00:30]} 22. Nd4 {[%emt 0:00:03]} b6 {[%emt 0:00:25]} (22... Nc3 $19 23. Rdc1 Rc7) 23. Rd2 {[%emt 0:01:16]} Qc3 {[%emt 0:00:31]} 24. Bxe4 {[%emt 0:00:40]} Qxb2 {[%emt 0:00:12]} 25. Rxb2 {[%emt 0:00:03]} Nc3 {[%emt 0:00:03]} 26. Bf3 {[%emt 0:00:22]} Bxd4 {[%emt 0:00:01]} 27. exd4 {[%emt 0:00:02]} Rfd8 {[%emt 0:00:10]} 28. Rd2 {[%emt 0:00:45]} Rc4 {[%emt 0:00:23]} 29. d5 {[%emt 0:01:30]} Rd6 {[%emt 0:00:01]} 30. Re1 {[%emt 0:01:01]} Rc5 {[%emt 0:00:34]} 31. Re7 {[%emt 0:00:08]} a5 {[%emt 0:00:07]} 32. Re5 {[%emt 0:01:23]} Kg7 {[%emt 0:00:03]} 33. Kg2 {[%emt 0:00:18]} b5 {[%emt 0:00:07]} 34. Kh3 {[%emt 0:01:57]} (34. a3 $1 $11 {keeps the balance.}) 34... b4 $36 {[%emt 0:00:04][%mdl 2048] Keeping White busy.} 35. g4 {[%emt 0:00:03]} hxg4+ {[%emt 0:00:06]} 36. Kxg4 {[%emt 0:00:20]} a4 {[%emt 0:00:53]} 37. h5 {[%emt 0:00:04]} (37. Kg3 $17) 37... gxh5+ {[%emt 0:00:14]} 38. Kxh5 $2 {[%emt 0:00:06]} (38. Kg3) 38... Rc4 $19 {[%emt 0:00:30] ...Rh6+ would now be deadly.} 39. Rg5+ {[%emt 0:01:11]} Kh7 {[%emt 0:00:11][%csl Gh7][%cal Rd6h6]} 40. Rg4 {[%emt 0:00:13]} Rh6+ $2 {[%emt 0:00:44]} ({Better is} 40... Rxg4 $19 41. Kxg4 b3) 41. Kg5 $15 {[%emt 0:00:01]} Rg6+ {[%emt 0:00:23]} (41... Rxg4+ {simplifies} 42. Kxg4 Rd6 43. Rc2 Nxd5 44. Rc4 a3) 42. Kf5 {[%emt 0:00:01] [#]} Rd6 $2 {[%emt 0:00:30][%mdl 8192]} 43. Rxc4 $18 {[%emt 0:00:02]} Kg7 {[%emt 0:00:14]} 44. Rxb4 {[%emt 0:00:04]} Rf6+ {[%emt 0:00:10]} 45. Kg4 {[%emt 0:00:07] And now d6 would win.} Rg6+ {[%emt 0:00:04]} 46. Kf4 {[%emt 0:00:02] Black must now prevent d6.} Rf6+ {[%emt 0:00:01]} 47. Kg3 {[%emt 0:00:02]} Rg6+ {[%emt 0:00:15]} 48. Rg4 {[%emt 0:00:01]} Rxg4+ {[%emt 0:00:03]} 49. Bxg4 {[%emt 0:00:02]} (49. Kxg4 $142 Kf8 50. d6 Ke8 51. Rc2 Kd7 52. Rxc3 Ke6 53. Rd3 (53. Re3+ Kxd6 54. Kf5 Kc5 55. Ke5 f6+ 56. Kxf6 Kd4 57. a3 Kc4) 53... f5+ 54. Kg5) 49... Ne4+ {[%emt 0:00:05]} 50. Kf4 {[%emt 0:00:33]} Nxd2 {[%emt 0:00:02][%mdl 4096] Endgame. KB-KN} 51. d6 {[%emt 0:00:21] Threatening mate with d7.} Kf6 {[%emt 0:00:05]} 52. d7 {[%emt 0:00:33]} (52. Be2 $142 Nb1 53. Ke3) 52... Ke7 {[%emt 0:00:02]} 53. Ke3 {[%emt 0:00:22]} Nc4+ {[%emt 0:00:08]} 54. Kd4 {[%emt 0:00:00]} Nd2 {[%emt 0:00:19]} 55. f3 $2 {[%emt 0:00:03]} (55. Kd3 $18 f5 56. d8=R (56. Bxf5 Nf3 $18) 56... Kxd8 57. Kxd2 (57. Bxf5 Nf3 $18) 57... fxg4 58. Ke3) 55... f5 $16 {[%emt 0:00:07] [#]} 56. Bxf5 {[%emt 0:00:02]} (56. Bh5 $1 $16) 56... Nxf3+ $11 {[%emt 0:00:01]} 57. Kc3 {[%emt 0:00:06]} a3 {[%emt 0:00:19]} 58. Kb4 {[%emt 0:00:02]} (58. Bh3 {simplifies} Ne5 59. Kb4 Nxd7 60. Kxa3 Kd8 61. Kb4) 58... Nd4 {[%emt 0:00:06]} (58... Ne5 {simplifies} 59. Kxa3 Nxd7 60. Bh3 Kd8) 59. Bg4 {[%emt 0:00:03]} Nc2+ {[%emt 0:00:23]} 60. Kb3 {[%emt 0:00:04]} Ne3 {[%emt 0:00:04]} 61. Bh3 {[%emt 0:00:03]} Kd8 {[%emt 0:00:18]} 62. Kxa3 {[%emt 0:00:02] Intending Kb4 and mate.} Nc4+ {[%emt 0:00:05]} 63. Kb4 {[%emt 0:00:01]} Nb6 {[%emt 0:00:01]} 64. a4 {[%emt 0:00:02]} Nxd7 {[%emt 0:00:16]} 65. Kb5 {[%emt 0:00:13] Kc6 would kill now.} Ne5 $2 {[%emt 0:00:15][%mdl 8192] [#]} (65... Kc7 $11) 66. a5 $2 {[%emt 0:00:10]} (66. Kb6 $1 $18 Nc4+ 67. Kc6) 66... Kc7 {[%emt 0:00:02] The position is equal.} 67. a6 {[%emt 0:00:10]} Nc6 {[%emt 0:00:12]} 68. Bg2 {[%emt 0:00:03]} Na7+ {[%emt 0:00:02]} 69. Kc5 {[%emt 0:00:02]} Nc8 {[%emt 0:00:13]} 70. Bf3 {[%emt 0:00:06]} Na7 {[%emt 0:00:02]} 71. Be4 {[%emt 0:00:06]} Nc8 {[%emt 0:00:02]} 72. Bf5 {[%emt 0:00:02]} Nb6 {[%emt 0:00:20]} 73. a7 {[%emt 0:00:04] White threatens Be4 and mate.} Kb7 {[%emt 0:00:02]} 74. Be4+ {[%emt 0:00:03]} Kxa7 {[%emt 0:00:01] A wild game.   Weighted Error Value: White=0.61/Black=0.41.  Loses game:     	White=1     	Black=2      Missed win:     	White=1     	Black=1      Mistake:       	White=4     	Black=1      Inaccurate:     	White=3     	Black=6      OK:         	White=8     	Black=20     Best:        	White=6     	Black=5      Brilliant:      	---       	Black=1} 1/2-1/2

[Event "Wuerttemberg Rapid Teams 2024"]
[Site "B?blingen, Germany"]
[Date "2024.04.13"]
[Round "6.21"]
[White "Kerpe, Andreas"]
[Black "Seitz, Patrick"]
[Result "1/2-1/2"]
[ECO "B24"]
[WhiteElo "2146"]
[BlackElo "2125"]
[Annotator "RC"]
[PlyCount "89"]
[EventDate "2024.04.13"]
[EventType "team-tourn"]
[SourceTitle "playchess.com"]
[Source "ChessBase"]
[SourceQuality "1"]
[TimeControl "900+5"]

1. e4 {[%emt 0:00:03]} c5 {[%emt 0:00:02]} 2. Nc3 {[%emt 0:00:00]} Nc6 {[%emt 0:00:02]} 3. g3 {[%emt 0:00:06]} g6 {[%emt 0:00:13]} 4. Bg2 {[%emt 0:00:01]} Bg7 {[%emt 0:00:02]} 5. d3 {[%emt 0:00:08]} e6 {[%emt 0:00:16]} 6. Be3 {[%emt 0:00:17]} b6 {[%emt 0:00:03]} 7. Qd2 {[%emt 0:00:06]} Bb7 {[%emt 0:00:49]} 8. Nge2 {[%emt 0:00:26]} h6 {[%emt 0:00:04]} 9. O-O {[%emt 0:00:19]} Nge7 {[%emt 0:00:02]} 10. Rad1 {[%emt 0:01:43]} a6 {[%emt 0:01:51]} 11. d4 {[%emt 0:01:24]} cxd4 {[%emt 0:00:02]} 12. Nxd4 {[%emt 0:00:01]} Ne5 {[%emt 0:00:01]} 13. Qe2 {[%emt 0:00:12]} O-O {[%emt 0:00:05]} 14. f4 {[%emt 0:00:13]} N5c6 {[%emt 0:00:01]} 15. Qf2 {[%emt 0:00:30]} b5 {[%emt 0:00:12]} 16. e5 {[%emt 0:01:17]} Qc7 {[%emt 0:01:07]} 17. Nb3 {[%emt 0:00:30]} Nb4 {[%emt 0:02:13]} 18. Bxb7 {[%emt 0:01:48]} Qxb7 {[%emt 0:00:01]} 19. Nc5 {[%emt 0:00:14]} Qc6 {[%emt 0:00:01]} 20. Rd6 {[%emt 0:00:24]} Qc8 {[%emt 0:00:01]} 21. Nxd7 {[%emt 0:01:31]} Ned5 {[%emt 0:00:25]} 22. Nxd5 {[%emt 0:00:15]} Nxd5 {[%emt 0:00:02]} 23. Nxf8 {[%emt 0:00:51]} Bxf8 {[%emt 0:00:01]} 24. Rxd5 {[%emt 0:00:06]} exd5 {[%emt 0:00:02]} 25. Rd1 {[%emt 0:00:06]} Qc4 {[%emt 0:00:06]} 26. b3 {[%emt 0:00:32]} Qe4 {[%emt 0:00:06]} 27. Rd4 {[%emt 0:00:02]} Qf5 {[%emt 0:00:01]} 28. Rxd5 {[%emt 0:00:42]} Rc8 {[%emt 0:00:01]} 29. Rd2 {[%emt 0:00:06]} Bb4 {[%emt 0:00:02]} 30. Re2 {[%emt 0:00:09]} Rd8 {[%emt 0:00:11]} 31. Kg2 {[%emt 0:00:02]} Rd1 {[%emt 0:00:21]} 32. Qf3 {[%emt 0:00:10]} h5 {[%emt 0:00:53]} 33. h3 {[%emt 0:00:10]} Qd7 {[%emt 0:00:47]} 34. g4 {[%emt 0:00:14]} hxg4 {[%emt 0:00:07]} 35. hxg4 {[%emt 0:00:01]} Ra1 {[%emt 0:00:16]} 36. f5 {[%emt 0:00:06]} Qd1 {[%emt 0:00:12]} 37. Kg3 {[%emt 0:00:33]} Be1+ {[%emt 0:01:15]} 38. Kf4 {[%emt 0:00:13]} Bh4 {[%emt 0:00:25]} 39. Qa8+ {[%emt 0:01:24]} Bd8 {[%emt 0:01:15]} 40. Bd2 {[%emt 0:01:00]} Qxe2 {[%emt 0:02:46]} 41. Qxd8+ {[%emt 0:00:01]} Kg7 {[%emt 0:00:01]} 42. Qf6+ {[%emt 0:00:14]} Kg8 {[%emt 0:00:00]} 43. Qd8+ {[%emt 0:00:14]} Kg7 {[%emt 0:00:01]} 44. Qf6+ {[%emt 0:00:09]} Kg8 {[%emt 0:00:01]} 45. Qd8+ {[%emt 0:00:16]} 1/2-1/2

[Event "Wuerttemberg Rapid Teams 2024"]
[Site "B?blingen, Germany"]
[Date "2024.04.13"]
[Round "6.22"]
[White "Narr, Kevin"]
[Black "Vaysberg, Alexander"]
[Result "1/2-1/2"]
[ECO "D02"]
[WhiteElo "1977"]
[BlackElo "2152"]
[Annotator "RC"]
[PlyCount "128"]
[EventDate "2024.04.13"]
[EventType "team-tourn"]
[SourceTitle "playchess.com"]
[Source "ChessBase"]
[SourceQuality "1"]
[TimeControl "900+5"]

1. d4 {[%emt 0:00:00]} Nf6 {[%emt 0:00:53]} 2. Nf3 {[%emt 0:00:01]} d5 {[%emt 0:00:07]} 3. Bf4 {[%emt 0:00:02]} c5 {[%emt 0:00:30]} 4. e3 {[%emt 0:00:00]} Qb6 {[%emt 0:00:07]} 5. Nc3 {[%emt 0:00:32]} a6 {[%emt 0:00:07]} 6. a3 {[%emt 0:01:41]} Nc6 {[%emt 0:00:08]} 7. Be2 {[%emt 0:01:43]} Bg4 {[%emt 0:00:16]} 8. dxc5 {[%emt 0:00:14]} Qxc5 {[%emt 0:00:04]} 9. O-O {[%emt 0:00:08]} e6 {[%emt 0:00:05]} 10. h3 {[%emt 0:00:18]} Bxf3 {[%emt 0:00:10]} 11. Bxf3 {[%emt 0:00:03]} Be7 {[%emt 0:00:08]} 12. Qd2 {[%emt 0:01:55]} O-O {[%emt 0:00:04]} 13. Rac1 {[%emt 0:00:34]} Rfd8 {[%emt 0:00:03]} 14. b4 {[%emt 0:00:30]} Qa7 {[%emt 0:00:06]} 15. Rfd1 {[%emt 0:02:02]} Rac8 {[%emt 0:00:03]} 16. Qe1 {[%emt 0:00:19]} b5 {[%emt 0:01:09]} 17. Bh2 {[%emt 0:01:41]} Qb6 {[%emt 0:02:01]} 18. g4 {[%emt 0:00:15]} Nxb4 {[%emt 0:00:18]} 19. axb4 {[%emt 0:00:07]} Bxb4 {[%emt 0:00:02]} 20. Be5 {[%emt 0:00:28]} Rc6 {[%emt 0:01:14]} 21. Rb1 {[%emt 0:01:03]} a5 {[%emt 0:00:42]} 22. Bd4 {[%emt 0:00:29]} Qb8 {[%emt 0:00:32]} 23. Rxb4 {[%emt 0:00:08]} axb4 {[%emt 0:00:03]} 24. Na2 {[%emt 0:00:08]} Rxc2 {[%emt 0:00:40]} 25. Nxb4 {[%emt 0:00:03]} Rc4 {[%emt 0:00:04]} 26. Be2 {[%emt 0:00:15]} Rcc8 {[%emt 0:00:22]} 27. Na6 {[%emt 0:00:10]} Qb7 {[%emt 0:00:11]} 28. Nc5 {[%emt 0:00:03]} Qc6 {[%emt 0:00:03]} 29. Rb1 {[%emt 0:00:06]} Rb8 {[%emt 0:02:28]} 30. Qb4 {[%emt 0:00:00]} Rdc8 {[%emt 0:00:41]} 31. g5 {[%emt 0:00:28]} Ne8 {[%emt 0:00:25]} 32. Bxb5 {[%emt 0:00:04]} Qd6 {[%emt 0:00:03]} 33. Na6 {[%emt 0:00:28]} Qxb4 {[%emt 0:00:53]} 34. Rxb4 {[%emt 0:00:00]} Ra8 {[%emt 0:00:55]} 35. Kg2 {[%emt 0:00:42]} Nd6 {[%emt 0:00:03]} 36. Bd3 {[%emt 0:00:04]} Nc4 {[%emt 0:00:15]} 37. Nc5 {[%emt 0:00:20]} e5 {[%emt 0:00:15]} 38. Bxc4 {[%emt 0:00:05]} exd4 {[%emt 0:00:23]} 39. Bxd5 {[%emt 0:00:06]} Ra5 {[%emt 0:00:10]} 40. exd4 {[%emt 0:00:06]} Ra7 {[%emt 0:00:13]} 41. h4 {[%emt 0:00:09]} g6 {[%emt 0:00:06]} 42. Ne4 {[%emt 0:00:01]} Rd8 {[%emt 0:00:08]} 43. Rb6 {[%emt 0:00:18]} Kg7 {[%emt 0:00:08]} 44. Nf6 {[%emt 0:00:20]} h6 {[%emt 0:00:04]} 45. Rb4 {[%emt 0:00:04]} hxg5 {[%emt 0:00:07]} 46. hxg5 {[%emt 0:00:01]} Ra5 {[%emt 0:00:02]} 47. Bc6 {[%emt 0:00:19]} Rxg5+ {[%emt 0:00:04]} 48. Kf1 {[%emt 0:00:02]} Kxf6 {[%emt 0:00:02]} 49. d5 {[%emt 0:00:01]} Ke5 {[%emt 0:00:12]} 50. f4+ {[%emt 0:00:02]} Kf6 {[%emt 0:00:07]} 51. fxg5+ {[%emt 0:00:02]} Kxg5 {[%emt 0:00:01]} 52. Rb7 {[%emt 0:00:12]} f5 {[%emt 0:00:03]} 53. Rd7 {[%emt 0:00:02]} Rxd7 {[%emt 0:00:21]} 54. Bxd7 {[%emt 0:00:01]} Kf4 {[%emt 0:00:06]} 55. Bc6 {[%emt 0:00:10]} Ke5 {[%emt 0:00:04]} 56. Kf2 {[%emt 0:00:01]} g5 {[%emt 0:00:01]} 57. Bb7 {[%emt 0:00:08]} f4 {[%emt 0:00:24]} 58. Kf3 {[%emt 0:00:00]} Kf5 {[%emt 0:00:02]} 59. Bc6 {[%emt 0:00:12]} g4+ {[%emt 0:00:03]} 60. Kf2 {[%emt 0:00:01]} Ke5 {[%emt 0:00:01]} 61. Kg2 {[%emt 0:00:04]} Kd6 {[%emt 0:00:12]} 62. Kf2 {[%emt 0:00:01]} Ke5 {[%emt 0:00:01]} 63. Ke2 {[%emt 0:00:03]} Kd6 {[%emt 0:00:06]} 64. Kf2 {[%emt 0:00:09]} Ke5 {[%emt 0:00:02]} 1/2-1/2